{"text_format":"3","workbook":"xlsx","n_sheets":1,"sheets":["Pricing schedule for 2 Years"],"not_rendered":{"images":1,"defined_names":2,"comments":2},"read":"whole","date_system":"1900"}

{"sheet":"Pricing schedule for 2 Years","index":0,"n_rows":38,"n_cols":9,"rows_kept":38,"merged":[[1,1,1,7],[2,4,2,7],[3,4,3,5],[3,6,3,7],[3,8,3,10],[4,0,4,3],[5,0,5,3],[6,0,6,3],[7,0,7,3],[8,0,8,3],[9,0,9,3],[10,0,10,3],[11,0,11,3],[12,0,12,3],[13,0,13,3],[14,0,14,3],[16,0,16,3],[17,0,17,3],[18,0,18,3],[19,0,19,3],[20,0,20,3],[22,0,22,3],[23,0,23,3],[25,2,25,4],[25,5,25,7],[26,2,26,4],[26,5,26,7],[27,2,27,4],[27,5,27,7],[28,2,28,4],[29,0,29,4],[30,0,30,4],[31,0,31,4],[32,0,32,4],[33,0,33,4],[34,1,34,3],[37,0,38,0]]}
[null,"APPENDIX A - PRICING SHEET "]
[null,"APPOINTMENT OF A PANEL OF EVENTS MANAGEMENT SERVICE PROVIDERS FOR A PERIOD OF TWO (02) YEARS FOR BANKSETA "]
[null,"Bid No: BS/2023/RFB502",null,null,"   For each piece of work requested by BANKSETA all panel members will be requested to quote  for the full work including any venue costs, catering, third party services and the project management fee, through a competitive request for quotation (RFQ) process. The award for the particular work will be to the highest scoring quote/bid.  Kindly note that theproject managent fee quoted in any RFQ  should the same as qoted below for the particurlar year."]
[{"$nulls":4},"Project Management fee per transaction First Year",null,"Project Management fee per transaction Second Year",null,"Total for 2 years"]
["Specification / Description A",{"$nulls":3},"Estimated number of candidate per event","Transaction fee Amount","Estimated number of candidate per event","Amount","TOTAL AMOUNT"]
["1. Annual General Meeting ",{"$nulls":3},100,null,100,null,{"$f":"F6+H6","v":{"v":0,"d":"R 0.00"}}]
["2. Stakeholder Engagement ",{"$nulls":3},100,null,100,null,{"v":0,"d":"R 0.00"}]
["3. Information Sessions ",{"$nulls":3},40,null,40,null,{"v":0,"d":"R 0.00"}]
["4. Board Workshops /board capacity workshops",{"$nulls":3},25,null,25,null,{"v":0,"d":"R 0.00"}]
["5. Strategic Planning Sessions ",{"$nulls":3},40,null,40,null,{"v":0,"d":"R 0.00"}]
["6. Graduation Ceremonies ",{"$nulls":3},50,null,50,null,{"v":0,"d":"R 0.00"}]
["7. Career Exhibitions ",{"$nulls":3},100,null,100,null,{"$f":"F12+H12","v":{"v":0,"d":"R 0.00"}}]
["8. Adhoc Events",{"$nulls":3},10,null,10,null,{"$f":"F13+H13","v":{"v":0,"d":"R 0.00"}}]
[]
["TOTAL COSTS",{"$nulls":4},{"$f":"SUM(F6:F13)","v":{"v":0,"d":"R 0.00"}},null,{"$f":"SUM(H6:H13)","v":{"v":0,"d":"R 0.00"}},{"$f":"SUM(F15+H15)","v":{"v":0,"d":"R 0.00"}}]
[]
["Other Items not included in above - BIDDER TO SPECIFY",{"$nulls":3},"Qty","Amount","Qty","Amount","TOTAL AMOUNT"]
[1,{"$nulls":7},{"$f":"F18+H18","v":{"v":0,"d":"R 0.00"}}]
[2,{"$nulls":7},{"v":0,"d":"R 0.00"}]
[3,{"$nulls":7},{"v":0,"d":"R 0.00"}]
[4,{"$nulls":7},{"v":0,"d":"R 0.00"}]
[5,{"$nulls":7},{"v":0,"d":"R 0.00"}]
[6,{"$nulls":7},{"$f":"F23+H23","v":{"v":0,"d":"R 0.00"}}]
["OPTIONAL ADDITION",{"$nulls":4},{"$f":"SUM(F18:F23)","v":{"v":0,"d":"R 0.00"}},null,{"$f":"SUM(H18:H23)","v":{"v":0,"d":"R 0.00"}},{"$f":"SUM(F24+H24)","v":{"v":0,"d":"R 0.00"}}]
[]
[null,null,"Total excluding VAT",null,null,{"$f":"I15+I24","v":{"v":0,"d":"R0.00"}}]
[null,null,"VAT if Applicable (If VAT registered)",null,null,{"$f":"F26*0.15","v":{"v":0,"d":"R0.00"}}]
[null,null,"TOTAL BIDDING PRICE INCL VAT",null,null,{"$f":"F26+F27","v":{"v":0,"d":"R0.00"}}]
["Notes:"]
["Pricing must cover all items detailed in the Terms of Reference"]
["Pricing must remain firm for the duration  of the Project."]
["Pricing must include Value Added Tax (VAT)"]
["Service provider must complte blocks in yellow. Total values in this spreadsheet are automatically calculated and filled in."]
["Travel expenses to and from the event will be calculated from BANKSETA Centurion offices to the event in line with SARS rates"]
["Date:"]
["Service Provider Name"]
["Name of Person Signing"]
["Signature"]